bitfinex/quotes_SOLUSD_20250406
["timestamp","ask_amount","ask_price","bid_price","bid_amount"]
[1743961598118,0.03,111.59,111.56,47.85437939]
[1743961598517,0.03,111.59,111.54,74.12997939]
[1743961598719,0.03,111.59,111.58,47.85437939]
[1743961598901,0.03,111.62,111.58,47.85437939]
[1743961599107,0.03,111.67,111.61,47.85437939]
[1743961599409,0.03,111.67,111.64,47.85437939]
[1743961599605,0.03,111.67,111.62,0.28432314]
[1743961599797,0.03,111.67,111.63,47.85437939]
[1743961600000,47.85437939,111.65,111.6,47.85437939]
[1743961600306,47.88437939,111.67,111.62,47.85437939]
[1743961600511,0.03,111.67,111.65,0.14216157]
[1743961600714,0.03,111.67,111.66,47.99654096]
[1743961601234,0.03,111.67,111.66,0.14216157]
[1743961601732,0.03,111.67,111.66,48.2808641]
[1743961602224,0.03,111.67,111.66,54.26554096]
[1743961602429,0.03,111.67,111.66,47.99654096]
[1743961602608,0.03,111.67,111.66,54.26554096]
[1743961602800,0.03,111.67,111.66,122.40424349]
[1743961602997,6.9083,111.79,111.7,0.14216157]
[1743961603196,12.8441,111.81,111.75,47.85437939]
[1743961603426,6.9083,111.86,111.75,47.99654096]
[1743961603639,6.9083,111.86,111.75,48.2808641]
[1743961603926,13.1595,111.98,111.86,0.14216157]
[1743961604126,13.1595,111.98,111.86,47.85437939]
[1743961604127,47.85437939,111.91,111.86,47.85437939]
[1743961604331,47.85437939,111.89,111.84,54.11277939]
[1743961604537,7.4083,111.98,111.87,47.85437939]
[1743961604714,6.9083,111.98,111.88,0.14216157]
[1743961604917,6.9083,111.98,111.9,0.14216157]
[1743961605229,6.9083,111.98,111.89,0.14216157]
[1743961605446,0.24424681,112.01,111.93,26.0]
[1743961605736,47.85437939,112.08,111.92,0.5]
[1743961605941,6.66405109,112.11,111.95,26.0]
[1743961606109,12.9071,112.19,112.01,20.0]
[1743961606307,47.85437939,112.14,112.05,47.85437939]
[1743961606506,12.9071,112.19,112.07,47.85437939]
[1743961606804,12.9071,112.19,112.04,20.0]
[1743961606805,0.063,112.19,112.08,47.37532572]
[1743961607012,47.37532572,112.2,112.02,20.0]
[1743961607013,12.7949517,112.25,112.05,26.0]
[1743961607212,16.0866,112.28,112.13,91.66909467]
[1743961607402,47.37532572,112.18,112.09,44.73244568]
[1743961607606,47.37532572,112.26,112.15,91.65018814]
[1743961607804,47.37532572,112.32,112.15,91.65018814]
[1743961607805,47.87532572,112.32,112.16,44.6434508]
[1743961608025,47.87532572,112.32,112.15,20.0]
[1743961608026,47.37532572,112.32,112.14,44.38241016]
[1743961608336,47.37532572,112.32,112.18,64.27434455]
[1743961608715,47.37532572,112.26,112.16,44.6434508]
[1743961608916,47.37532572,112.21,112.16,44.6434508]
[1743961609108,6.9083,112.26,112.2,47.37532572]
[1743961609342,46.98929572,112.32,112.23,47.37532572]
[1743961609547,6.9713,112.33,112.23,26.0]
[1743961609548,47.37532572,112.31,112.23,26.0]
[1743961609837,47.37532572,112.27,112.21,20.0]
[1743961610129,47.37532572,112.23,112.17,20.0]
[1743961610318,47.37532572,112.22,112.15,20.0]
[1743961610520,47.37532572,112.2,112.15,47.37532572]
[1743961610715,47.37532572,112.26,112.15,0.5]
[1743961610921,26.0,112.23,112.13,47.37532572]
[1743961611121,47.37532572,112.15,112.1,44.88163127]
[1743961611323,47.37532572,112.14,112.11,0.5]
[1743961611521,334.32,112.24,112.14,0.5]
[1743961611712,47.37532572,112.15,112.09,44.73244568]
[1743961611910,47.37532572,112.12,112.06,0.5]
[1743961612115,47.37532572,112.07,112.04,44.81048671]
[1743961612322,47.37532572,112.14,112.03,77.77724433]
[1743961612323,47.37532572,112.05,112.03,77.77724433]
[1743961612626,47.37532572,112.04,112.03,77.77724433]
[1743961612824,47.37532572,112.08,112.03,77.77724433]
[1743961613028,47.37532572,112.04,112.03,77.77724433]
[1743961613512,94.75065144,112.04,112.01,103.70299244]
[1743961613719,94.75065144,112.02,112.0,129.62874055]
[1743961613928,47.37532572,112.01,112.0,129.62874055]
[1743961614126,15.4476705,112.03,112.0,129.62874055]
[1743961614330,47.37532572,112.01,112.0,129.62874055]
[1743961614735,26.0,111.98,111.9,0.5]
[1743961614933,47.37532572,111.92,111.91,7.9]
[1743961615149,47.37532572,111.95,111.93,0.5]
[1743961615527,47.37532572,111.95,111.91,8.4]
[1743961615744,47.37532572,112.02,111.93,0.5]
[1743961615927,47.37532572,111.96,111.91,8.4]
[1743961616127,66.02497458,112.02,111.95,0.5]
[1743961616446,15.4476705,112.03,111.99,0.5]
[1743961616635,15.4476705,112.03,111.99,47.87532572]
[1743961616958,15.4476705,112.03,112.02,0.5]
[1743961617126,62.82299622,112.03,111.99,0.5]
[1743961617448,62.82299622,112.03,111.97,0.5]
[1743961617449,47.37532572,112.0,111.97,0.5]
[1743961617746,47.37532572,111.98,111.97,0.5]
[1743961617923,15.4476705,112.03,111.98,0.5]
[1743961617924,47.37532572,112.0,111.98,0.5]
[1743961618245,47.37532572,112.0,111.94,0.14216157]
[1743961618246,15.4476705,112.03,111.96,47.87532572]
[1743961618448,47.37532572,111.99,111.96,0.5]
[1743961618631,15.4476705,112.03,111.96,0.5]
[1743961618833,47.37532572,112.0,111.97,0.5]
[1743961619049,47.37532572,112.01,111.97,0.5]
[1743961619236,47.37532572,112.01,111.99,0.5]
[1743961619435,47.37532572,112.01,111.97,0.5]
[1743961619745,47.37532572,112.0,111.98,0.5]
[1743961619934,15.4476705,112.03,112.0,0.5]
[1743961620350,15.4476705,112.03,112.01,0.5]
[1743961620669,15.4476705,112.03,112.02,48.01748729]
[1743961620959,15.4476705,112.03,112.02,26.64216157]
[1743961621129,15.4476705,112.03,112.02,0.5]
[1743961621326,15.4476705,112.03,112.02,48.01748729]
[1743961621546,15.4476705,112.03,112.02,134.32678501]
[1743961621745,0.03,112.18,112.09,0.5]
[1743961621938,0.03,112.18,112.1,47.37532572]
[1743961622145,0.03,112.18,112.15,0.5]
[1743961622355,47.40532572,112.18,112.15,0.5]
[1743961622563,0.03,112.18,112.17,0.5]
[1743961622948,0.03,112.18,112.17,47.87532572]
[1743961623152,0.03,112.18,112.17,48.01748729]
[1743961623359,0.03,112.18,112.17,66.95145929]
[1743961623566,0.03,112.18,112.17,0.64216157]
[1743961623738,0.03,112.18,112.17,66.95145929]
[1743961623931,13.0003,112.33,112.25,0.5]
[1743961624254,13.0003,112.33,112.28,0.5]
[1743961624255,47.37532572,112.31,112.28,0.5]
[1743961624453,0.063,112.33,112.29,0.5]
[1743961624836,0.063,112.33,112.31,0.5]
[1743961625039,0.063,112.33,112.3,0.5]
[1743961625239,0.063,112.33,112.32,0.5]
[1743961625440,0.063,112.33,112.32,48.01748729]
[1743961625645,0.063,112.33,112.32,19.57613357]
[1743961625849,0.063,112.33,112.3,20.5]
[1743961626048,47.43832572,112.33,112.3,0.5]
[1743961626245,0.063,112.33,112.3,0.5]
[1743961626441,0.063,112.33,112.31,0.5]
[1743961626640,0.063,112.33,112.28,0.5]
[1743961626855,0.063,112.33,112.28,0.64216157]
[1743961627053,47.37532572,112.32,112.29,0.5]
[1743961627358,47.37532572,112.3,112.28,0.5]
[1743961627542,47.37532572,112.29,112.24,0.5]
[1743961627728,47.37532572,112.25,112.24,0.5]
[1743961627935,0.28432314,112.27,112.21,0.43]
[1743961628258,0.20516157,112.33,112.22,0.5]
[1743961628460,18.85481043,112.33,112.27,0.5]
[1743961628754,0.063,112.33,112.28,0.5]
[1743961628957,47.37532572,112.29,112.25,0.5]
[1743961629160,47.37532572,112.32,112.23,0.5]
[1743961629338,0.063,112.33,112.28,0.5]
[1743961629546,47.37532572,112.29,112.23,0.93]
[1743961629732,47.37532572,112.28,112.23,0.93]
[1743961629932,47.37532572,112.32,112.24,0.5]
[1743961630157,47.37532572,112.29,112.26,0.5]
[1743961630557,0.063,112.33,112.28,0.5]
[1743961630734,47.37532572,112.31,112.29,0.5]
[1743961630939,47.37532572,112.3,112.25,0.5]
[1743961631142,47.37532572,112.26,112.22,0.5]
[1743961631348,18.79181043,112.29,112.23,0.93]
[1743961631349,47.37532572,112.24,112.23,0.93]
[1743961631644,18.933972,112.31,112.24,0.5]
[1743961631831,0.063,112.33,112.29,0.5]
[1743961632032,0.063,112.33,112.32,0.5]
[1743961632242,0.063,112.33,112.3,0.5]
[1743961632451,0.063,112.33,112.29,0.5]
[1743961632765,47.37532572,112.3,112.27,0.5]
[1743961633070,0.063,112.33,112.28,0.5]
[1743961633249,47.37532572,112.29,112.26,0.5]
[1743961633441,47.37532572,112.27,112.23,0.5]
[1743961633640,0.14216157,112.3,112.19,0.14216157]
[1743961633641,47.37532572,112.26,112.22,0.5]
[1743961633862,26.14216157,112.29,112.22,0.5]
[1743961634072,18.64964886,112.31,112.25,0.5]
[1743961634264,47.37532572,112.3,112.28,0.5]
[1743961634437,0.063,112.33,112.27,0.5]
[1743961634635,47.37532572,112.29,112.26,0.5]
[1743961634865,0.063,112.33,112.26,0.5]
[1743961635034,0.063,112.33,112.25,0.5]
[1743961635035,18.64964886,112.31,112.25,0.5]
[1743961635239,0.063,112.33,112.29,0.5]
[1743961635437,47.37532572,112.3,112.24,0.5]
[1743961635739,18.64964886,112.24,112.18,334.02]
[1743961635942,47.37532572,112.26,112.21,0.5]
[1743961636152,47.37532572,112.22,112.17,0.5]
[1743961636464,47.37532572,112.18,112.15,0.5]
[1743961636646,47.37532572,112.16,112.13,0.5]
[1743961636836,47.37532572,112.14,112.13,0.5]
[1743961637039,47.37532572,112.14,112.1,0.5]
[1743961637275,47.37532572,112.11,112.1,0.5]
[1743961637450,47.37532572,112.11,112.08,0.5]
[1743961637656,18.64964886,112.13,112.07,0.5]
[1743961637849,18.64964886,112.13,112.06,0.5]
[1743961638049,47.37532572,112.08,112.05,0.5]
[1743961638246,18.79181043,112.13,112.04,0.5]
[1743961638549,0.28432314,112.12,112.04,0.5]
[1743961638750,0.28432314,112.12,112.03,0.5]
[1743961638955,18.64964886,112.13,112.05,0.5]
[1743961639277,47.37532572,112.07,112.04,0.5]
[1743961639666,47.37532572,112.05,112.01,0.063]
[1743961639853,18.64964886,112.07,112.02,0.5]
[1743961640171,47.37532572,112.08,112.02,0.5]
[1743961640347,26.28432314,112.11,112.04,0.5]
[1743961640682,47.37532572,112.07,112.04,0.5]
[1743961640853,0.14216157,112.15,112.07,0.5]
[1743961641052,54.30032572,112.2,112.02,0.5]
[1743961641053,18.64964886,112.07,112.02,0.5]
[1743961641580,18.933972,112.12,112.05,0.5]
[1743961641763,47.37532572,112.07,112.03,0.5]
[1743961641975,44.64964886,112.11,112.06,0.5]
[1743961642269,0.14216157,112.12,112.04,0.5]
[1743961642468,47.37532572,112.08,112.06,0.5]
[1743961642658,47.37532572,112.07,112.03,0.5]
[1743961642973,47.37532572,112.06,112.04,0.5]
[1743961643184,47.37532572,112.06,112.01,73.43832572]
[1743961643185,47.37532572,112.05,112.01,0.063]
[1743961643469,18.933972,112.07,112.01,0.063]
[1743961643639,18.64964886,112.07,112.01,0.063]
[1743961643842,47.37532572,112.02,112.01,0.063]
[1743961644162,95.03497458,112.02,112.01,0.063]
[1743961644461,18.64964886,111.98,111.92,0.5]
[1743961644771,18.933972,112.01,111.92,54.12972572]
[1743961644966,47.37532572,111.97,111.96,0.5]
[1743961645271,94.75065144,111.97,111.92,0.5]
[1743961645455,66.45145929,112.02,111.9,0.5]
[1743961645456,47.37532572,111.96,111.9,0.5]
[1743961645658,47.37532572,111.96,111.89,6.3189]
[1743961645659,47.37532572,111.93,111.92,0.5]
[1743961645866,18.64964886,111.97,111.92,0.5]
[1743961646054,62.382,112.22,111.92,0.5]
[1743961646055,47.37532572,111.94,111.92,0.5]
[1743961646255,47.37532572,111.95,111.94,0.5]
[1743961646476,47.37532572,111.95,111.9,53.77298729]
[1743961646477,47.37532572,111.95,111.92,0.5]
[1743961646777,47.37532572,111.93,111.89,0.063]
[1743961646948,47.65964886,111.96,111.89,0.063]
[1743961646949,18.64964886,111.95,111.9,0.5]
[1743961647277,47.37532572,111.96,111.91,0.5]
[1743961647446,47.37532572,111.93,111.91,0.5]
[1743961647642,47.37532572,111.92,111.89,0.063]
[1743961647842,47.37532572,111.9,111.89,0.063]
[1743961648060,18.64964886,111.95,111.89,0.063]
[1743961648061,0.28432314,111.94,111.89,0.063]
[1743961648357,47.37532572,111.9,111.89,0.563]
[1743961648556,18.64964886,111.95,111.89,0.063]
[1743961648757,47.37532572,111.91,111.89,0.063]
[1743961648965,47.37532572,111.9,111.89,0.063]
[1743961649362,113.4003003,111.9,111.89,0.063]
[1743961649672,47.37532572,111.96,111.89,0.063]
[1743961649859,113.68462344,111.9,111.89,0.063]
[1743961650169,47.37532572,111.9,111.89,0.063]
[1743961650374,113.4003003,111.9,111.89,0.063]
[1743961650576,113.68462344,111.9,111.89,0.063]
[1743961651060,19.07613357,111.89,111.81,0.5]
[1743961651463,47.37532572,111.82,111.81,0.5]
[1743961651854,47.37532572,111.82,111.77,0.063]
[1743961652054,19.07613357,111.83,111.77,0.063]
[1743961652055,47.37532572,111.78,111.77,0.063]
[1743961652255,95.03497458,111.78,111.77,0.063]
[1743961652561,47.37532572,111.78,111.77,0.063]
[1743961652947,18.64964886,111.81,111.77,0.063]
[1743961653156,18.933972,111.83,111.77,0.063]
[1743961653479,18.64964886,111.83,111.77,0.563]
[1743961653673,47.37532572,111.79,111.78,0.5]
[1743961654476,47.37532572,111.79,111.77,0.063]
[1743961654655,94.75065144,111.78,111.77,0.063]
[1743961654855,113.4003003,111.78,111.77,0.063]
[1743961655257,113.68462344,111.78,111.77,0.063]
[1743961655669,113.4003003,111.78,111.77,0.063]
[1743961655874,113.68462344,111.78,111.77,0.063]
[1743961656259,113.82678501,111.78,111.77,0.063]
[1743961656612,113.82678501,111.78,111.7,0.5]
[1743961656613,19.07613357,111.77,111.69,0.5]
[1743961656877,47.37532572,111.72,111.69,0.5]
[1743961657083,18.933972,111.77,111.68,47.87532572]
[1743961657283,18.64964886,111.77,111.72,0.5]
[1743961657469,47.37532572,111.73,111.72,0.5]
[1743961657665,47.37532572,111.73,111.69,0.14216157]
[1743961657666,47.37532572,111.73,111.69,0.5]
[1743961657871,47.37532572,111.74,111.72,0.5]
[1743961658074,47.37532572,111.74,111.71,0.5]
[1743961658283,0.28432314,111.77,111.74,0.5]
[1743961658489,47.37532572,111.75,111.71,0.5]
[1743961658677,47.37532572,111.74,111.71,0.5]
[1743961658873,47.37532572,111.73,111.71,0.5]
[1743961659192,47.37532572,111.75,111.74,0.5]
[1743961659392,47.37532572,111.75,111.73,0.5]
[1743961659687,47.37532572,111.78,111.71,0.5]
[1743961659688,18.64964886,111.77,111.71,0.5]
[1743961659891,47.37532572,111.73,111.72,0.5]
[1743961660065,47.37532572,111.78,111.72,0.5]
[1743961660390,47.37532572,111.84,111.78,0.5]
[1743961660589,47.37532572,111.8,111.79,0.5]
[1743961661465,47.37532572,111.8,111.77,0.5]
[1743961661796,94.75065144,111.78,111.74,0.5]
[1743961662090,94.75065144,111.78,111.7,47.37532572]
[1743961662091,47.37532572,111.75,111.72,0.5]
[1743961662299,18.64964886,111.77,111.72,0.5]
[1743961662478,47.37532572,111.75,111.72,0.5]
[1743961662679,26.0,111.81,111.77,0.5]
[1743961662876,47.37532572,111.78,111.77,0.5]
[1743961663191,47.37532572,111.78,111.75,0.5]
[1743961663386,47.37532572,111.76,111.74,0.5]
[1743961663593,47.37532572,111.75,111.72,0.5]
[1743961663768,47.37532572,111.73,111.72,0.5]
[1743961663969,47.37532572,111.73,111.7,0.5]
[1743961664299,47.37532572,111.71,111.68,0.5]
[1743961664469,0.14216157,111.76,111.68,0.5]
[1743961664676,47.37532572,111.69,111.68,0.5]
[1743961664869,0.14216157,111.68,111.67,8.68]
[1743961665075,18.64964886,111.64,111.57,0.5]
[1743961665371,47.37532572,111.58,111.54,0.5]
[1743961665576,18.64964886,111.59,111.54,0.5]
[1743961665785,47.37532572,111.55,111.53,0.5]
[1743961665978,18.64964886,111.59,111.52,0.5]
[1743961666271,47.37532572,111.53,111.51,0.5]
[1743961666474,47.37532572,111.52,111.5,0.5]
[1743961666793,47.37532572,111.51,111.48,0.5]
[1743961666983,47.37532572,111.49,111.48,0.5]
[1743961667384,47.37532572,111.49,111.47,0.5]
[1743961667587,18.64964886,111.53,111.45,6.2808]
[1743961667588,18.64964886,111.53,111.48,0.5]
[1743961667786,47.37532572,111.52,111.49,0.5]
[1743961667987,47.37532572,111.54,111.53,0.5]
[1743961668194,18.64964886,111.59,111.55,0.5]
[1743961668369,47.37532572,111.56,111.53,0.5]
[1743961668572,47.37532572,111.6,111.56,0.5]
[1743961668776,0.14216157,111.65,111.58,0.5]
[1743961668985,47.37532572,111.66,111.6,0.5]
[1743961669405,18.933972,111.65,111.58,0.5]
[1743961669588,18.64964886,111.65,111.6,0.5]
[1743961669799,47.37532572,111.62,111.59,0.5]
[1743961669983,47.37532572,111.6,111.59,0.5]
[1743961670182,47.37532572,111.6,111.58,0.5]
[1743961670387,47.37532572,111.59,111.55,0.5]
[1743961670588,47.37532572,111.56,111.55,0.5]
[1743961670788,47.37532572,111.56,111.54,0.563]
[1743961671096,47.37532572,111.55,111.54,0.063]
[1743961671401,47.37532572,111.56,111.54,0.563]
[1743961671700,47.37532572,111.57,111.55,0.5]
[1743961671880,19.34216157,111.67,111.58,0.5]
[1743961672089,47.37532572,111.61,111.58,0.5]
[1743961672397,47.37532572,111.59,111.58,0.5]
[1743961672876,47.37532572,111.59,111.57,0.5]
[1743961673077,47.37532572,111.58,111.57,0.5]
[1743961673277,47.37532572,111.58,111.55,0.5]
[1743961673495,47.37532572,111.56,111.54,0.563]
[1743961674000,47.37532572,111.56,111.55,0.5]
[1743961674202,47.37532572,111.58,111.54,54.21392572]
[1743961674381,47.37532572,111.58,111.57,0.5]
[1743961674578,47.37532572,111.58,111.54,0.563]
[1743961674909,47.37532572,111.56,111.55,0.5]
[1743961675078,47.37532572,111.56,111.54,0.563]
[1743961675282,47.37532572,111.55,111.54,0.563]
[1743961675804,18.64964886,111.59,111.54,0.563]
[1743961676002,47.37532572,111.55,111.54,0.563]
[1743961676201,47.37532572,111.56,111.54,6.8387]
[1743961676404,47.37532572,111.57,111.56,0.5]
[1743961677178,26.0,111.62,111.58,0.5]
[1743961677502,47.37532572,111.59,111.58,0.5]
[1743961677803,47.37532572,111.59,111.56,0.5]
[1743961678103,0.28432314,111.64,111.54,22.0281]
[1743961678104,47.37532572,111.58,111.55,0.5]
[1743961678280,18.64964886,111.62,111.58,0.5]
[1743961678488,47.37532572,111.59,111.58,0.5]
[1743961678708,26.0,111.63,111.58,0.5]
[1743961679003,47.37532572,111.59,111.56,6.7746]
[1743961679177,47.37532572,111.57,111.54,0.063]
[1743961679378,18.64964886,111.58,111.54,0.063]
[1743961679379,47.37532572,111.55,111.54,0.063]
[1743961679802,47.37532572,111.56,111.54,0.063]
[1743961679980,18.7,111.64,111.56,0.5]
[1743961680184,47.37532572,111.6,111.58,0.5]
[1743961680385,18.7,111.64,111.6,0.5]
[1743961680596,47.37532572,111.61,111.57,0.5]
[1743961680781,47.37532572,111.6,111.57,0.5]
[1743961680979,47.37532572,111.58,111.57,0.5]
[1743961681207,81.2,111.72,111.6,0.14216157]
[1743961681394,47.37532572,111.65,111.63,0.5]
[1743961681590,18.64,111.71,111.64,0.5]
[1743961681591,47.37532572,111.66,111.64,0.5]
[1743961681793,47.37532572,111.66,111.65,0.5]
[1743961682110,18.6,111.71,111.65,0.5]
[1743961682274,18.6,111.71,111.66,0.5]
[1743961682478,18.64964886,111.7,111.66,0.5]
[1743961682690,18.64964886,111.7,111.6,0.14216157]
[1743961682691,47.37532572,111.68,111.67,0.5]
[1743961682889,47.37532572,111.7,111.66,0.5]
[1743961683097,18.5,111.77,111.69,0.5]
[1743961683305,47.37532572,111.71,111.69,0.5]
[1743961683497,47.37532572,111.7,111.67,0.5]
[1743961683797,47.37532572,111.72,111.67,0.5]
[1743961683798,47.37532572,111.68,111.67,0.5]
[1743961684004,47.37532572,111.68,111.65,0.5]
[1743961684179,47.37532572,111.66,111.65,0.5]
[1743961685782,18.66432314,111.7,111.65,0.5]
[1743961686109,18.24,111.75,111.71,0.5]
[1743961686280,47.37532572,111.72,111.71,0.5]
[1743961686802,47.40532572,111.78,111.72,0.5]
[1743961687004,0.03,111.78,111.74,0.5]
[1743961687175,47.37532572,111.77,111.74,6.7644]
[1743961687383,0.03,111.78,111.77,0.64216157]
[1743961687602,0.03,111.78,111.77,74.01748729]
[1743961688012,60.44922572,111.9,111.83,0.5]
[1743961688193,47.37532572,111.87,111.85,0.5]
[1743961688387,0.03,111.9,111.87,0.5]
[1743961688607,47.37532572,111.88,111.86,0.5]
[1743961688814,47.37532572,111.87,111.83,0.5]
[1743961689109,18.64964886,111.83,111.78,0.5]
[1743961689288,47.37532572,111.79,111.77,0.5]
[1743961689483,47.37532572,111.78,111.75,0.5]
[1743961689688,18.04,111.79,111.78,0.5]
[1743961690090,47.37532572,111.79,111.77,0.5]
[1743961690290,18.14216157,111.82,111.77,0.5]
[1743961690291,47.37532572,111.78,111.77,0.5]
[1743961690490,18.0,111.82,111.81,0.5]
[1743961690724,81.2,111.92,111.84,0.5]
[1743961691012,18.0,111.89,111.84,0.5]
[1743961691192,94.75065144,111.85,111.79,0.5]
[1743961691392,47.37532572,111.8,111.79,0.5]
[1743961691711,47.37532572,111.84,111.8,0.5]
[1743961692014,99.2,111.89,111.84,0.5]
[1743961692015,18.0,111.89,111.84,0.5]
[1743961692217,81.2,111.94,111.85,0.5]
[1743961692512,81.2,111.94,111.8,0.14216157]
[1743961692513,47.37532572,111.86,111.84,0.5]
[1743961692694,47.37532572,111.85,111.82,0.5]
[1743961693013,47.37532572,111.85,111.84,0.5]
[1743961693212,18.02,111.89,111.84,0.5]
[1743961693390,47.37532572,111.86,111.85,0.5]
[1743961693790,0.03,111.9,111.88,0.5]
[1743961693988,0.03,111.9,111.89,0.5]
[1743961694501,0.03,111.9,111.83,41.9081]
[1743961694502,47.40532572,111.9,111.88,0.5]
[1743961694809,47.37532572,111.89,111.88,0.5]
[1743961695015,47.40532572,111.9,111.88,0.5]
[1743961695215,0.03,112.02,111.93,0.5]
[1743961695385,47.37532572,111.96,111.91,0.5]
[1743961695584,47.37532572,111.92,111.91,0.5]
[1743961695790,81.2,112.0,111.94,0.5]
[1743961696117,47.37532572,111.95,111.91,0.5]
[1743961696320,47.37532572,111.92,111.9,0.5]
[1743961696618,94.75065144,111.91,111.87,0.5]
[1743961696914,47.37532572,111.88,111.87,0.5]
[1743961697122,0.28432314,111.93,111.87,0.5]
[1743961697303,47.37532572,111.91,111.89,0.5]
[1743961697496,47.37532572,111.9,111.89,0.5]
[1743961698426,0.28432314,111.88,111.83,0.5]
[1743961698591,47.37532572,111.84,111.83,0.5]
[1743961698797,47.37532572,111.84,111.81,0.5]
[1743961698798,94.75065144,111.84,111.81,0.5]
[1743961698994,94.75065144,111.84,111.76,340.9433]
[1743961698995,47.37532572,111.82,111.8,0.5]
[1743961699200,47.37532572,111.81,111.8,0.5]
[1743961699398,47.37532572,111.81,111.78,0.5]
[1743961699606,47.37532572,111.79,111.78,0.5]
[1743961699806,17.9,111.83,111.79,0.5]
[1743961700012,47.37532572,111.8,111.78,0.5]
[1743961700220,17.9,111.83,111.79,0.5]
[1743961700221,47.37532572,111.81,111.79,0.5]
[1743961700420,17.88,111.88,111.85,0.5]
[1743961700593,47.37532572,111.86,111.84,0.5]
[1743961700798,47.37532572,111.85,111.84,0.5]
[1743961700989,17.88,111.88,111.87,0.5]
[1743961701391,47.37532572,111.89,111.88,0.5]
[1743961701627,17.88,111.93,111.9,0.5]
[1743961701628,47.37532572,111.91,111.9,0.5]
[1743961701818,47.37532572,111.91,111.88,0.5]
[1743961702118,17.88,111.93,111.81,15.6512]
[1743961702119,47.37532572,111.89,111.87,0.5]
[1743961702321,47.37532572,111.88,111.87,0.5]
[1743961702519,47.37532572,111.88,111.85,0.5]
[1743961702698,47.37532572,111.9,111.87,0.5]
[1743961702896,47.37532572,111.88,111.87,0.5]
[1743961703115,18.79181043,111.94,111.88,0.5]
[1743961703425,47.37532572,111.89,111.88,0.5]
[1743961704196,47.37532572,111.89,111.85,0.5]
[1743961704406,47.37532572,111.9,111.86,0.5]
[1743961704725,47.37532572,111.91,111.9,0.5]
[1743961704892,17.8,111.93,111.91,0.5]
[1743961705094,17.8,111.93,111.87,47.51748729]
[1743961705095,0.03,111.96,111.95,0.5]
[1743961705323,0.03,111.96,111.94,0.5]
[1743961705520,0.03,111.96,111.88,0.14216157]
[1743961705521,0.03,111.96,111.95,0.5]
[1743961705695,47.40532572,111.96,111.95,0.5]
[1743961705897,0.03,111.96,111.95,0.5]
[1743961706306,0.03,111.96,111.95,48.01748729]
[1743961706817,0.03,111.96,111.95,0.64216157]
[1743961707024,0.03,111.96,111.95,0.5]
[1743961708722,47.40532572,111.96,111.95,0.5]
[1743961709021,0.03,111.96,111.95,0.5]
[1743961709716,0.03,111.96,111.95,47.87532572]
[1743961709915,0.03,111.96,111.95,54.27018729]
[1743961710114,0.03,111.96,111.95,54.12802572]
[1743961710317,0.03,111.96,111.95,47.87532572]
[1743961710622,0.03,111.96,111.95,0.5]
[1743961711128,47.40532572,111.96,111.95,0.5]
[1743961711303,94.78065144,111.96,111.95,0.5]
[1743961711699,113.71462344,111.96,111.95,0.5]
[1743961711899,17.33,111.96,111.95,0.5]
[1743961712201,64.70532572,111.96,111.95,0.5]
[1743961712592,64.70532572,111.96,111.9,0.5]
[1743961712593,18.933972,111.95,111.9,0.5]
[1743961712818,18.933972,111.95,111.86,6.2574]
[1743961712819,47.37532572,111.91,111.88,0.5]
[1743961713021,0.28432314,111.92,111.88,0.5]